[Event "Titled Tuesday Blitz November 07 Late 2023"]
[White "Weisz, Bryan"]
[Black "Szpar, Milosz"]
[WhiteFideId "30934133"]
[BlackFideId "1184989"]
[WhiteElo "2433"]
[BlackElo "2813"]
[Result "0-1"]
[Round "1"]
[TimeControl "180+1"]
[Date "2023.11.07"]
[WhiteClock "0:00:00"]
[BlackClock "0:00:37"]
[Board "50"]

1. e4 {[%clk 0:03:00]}  e6 {[%clk 0:02:57]} 2. d4 {[%clk 0:03:00]}  d5 {[%clk 0:02:57]} 3. Bf4 {[%clk 0:02:58]}  dxe4 {[%clk 0:02:54]} 4. Nc3 {[%clk 0:02:45]}  Nf6 {[%clk 0:02:51]} 5. f3 {[%clk 0:02:16]}  Bb4 {[%clk 0:02:28]} 6. Qd2 {[%clk 0:01:42]}  Nc6 {[%clk 0:02:23]} 7. O-O-O {[%clk 0:01:42]}  Qe7 {[%clk 0:02:08]} 8. Bg5 {[%clk 0:01:39]}  Bd7 {[%clk 0:01:50]} 9. Bxf6 {[%clk 0:00:56]}  Qxf6 {[%clk 0:01:49]} 10. fxe4 {[%clk 0:00:57]}  e5 {[%clk 0:01:49]} 11. d5 {[%clk 0:00:51]}  Nd4 {[%clk 0:01:50]} 12. Nge2 {[%clk 0:00:37]}  Bg4 {[%clk 0:01:34]} 13. h3 {[%clk 0:00:31]}  Bxe2 {[%clk 0:01:29]} 14. Bxe2 {[%clk 0:00:30]}  O-O-O {[%clk 0:01:27]} 15. Bg4+ {[%clk 0:00:19]}  Kb8 {[%clk 0:01:27]} 16. Rhf1 {[%clk 0:00:17]}  Qe7 {[%clk 0:01:27]} 17. Qd3 {[%clk 0:00:12]}  h5 {[%clk 0:01:12]} 18. Bf3 {[%clk 0:00:12]}  Bxc3 {[%clk 0:01:00]} 19. Qxc3 {[%clk 0:00:12]}  Rh6 {[%clk 0:00:59]} 20. Qd3 {[%clk 0:00:06]}  Ra6 {[%clk 0:00:59]} 21. a3 {[%clk 0:00:05]}  Rb6 {[%clk 0:00:58]} 22. c3 {[%clk 0:00:03]}  Nb3+ {[%clk 0:00:55]} 23. Kc2 {[%clk 0:00:04]}  Nc5 {[%clk 0:00:54]} 24. Qc4 {[%clk 0:00:04]}  Nb3 {[%clk 0:00:49]} 25. Bxh5 {[%clk 0:00:04]}  g6 {[%clk 0:00:46]} 26. Be2 {[%clk 0:00:04]}  a5 {[%clk 0:00:42]} 27. Qxb3 {[%clk 0:00:03]}  Rxb3 {[%clk 0:00:42]} 28. Kxb3 {[%clk 0:00:03]}  Rd6 {[%clk 0:00:40]} 29. Ka2 {[%clk 0:00:02]}  a4 {[%clk 0:00:40]} 30. Rd2 {[%clk 0:00:02]}  Rb6 {[%clk 0:00:39]} 31. Bd1 {[%clk 0:00:03]}  Qc5 {[%clk 0:00:37]} 32. Bxa4 {[%clk 0:00:00]}  Qc4+ {[%clk 0:00:37]} 0-1


[Site "https://www.chess.com"]

[Event "Titled Tuesday Blitz November 07 Late 2023"]
[White "hristos03"]
[Black "Holt, Conrad"]
[BlackFideId "2034387"]
[WhiteElo "2433"]
[BlackElo "2808"]
[Result "0-1"]
[Round "1"]
[TimeControl "180+1"]
[Date "2023.11.07"]
[WhiteClock "0:00:00"]
[BlackClock "0:01:36"]
[Board "52"]

1. e4 {[%clk 0:02:59]}  e6 {[%clk 0:03:00]} 2. d4 {[%clk 0:02:59]}  d5 {[%clk 0:03:00]} 3. e5 {[%clk 0:02:59]}  c5 {[%clk 0:03:01]} 4. c3 {[%clk 0:02:59]}  Bd7 {[%clk 0:03:01]} 5. Nf3 {[%clk 0:02:58]}  Nc6 {[%clk 0:03:00]} 6. Be2 {[%clk 0:02:58]}  f6 {[%clk 0:02:56]} 7. O-O {[%clk 0:02:55]}  Qc7 {[%clk 0:02:55]} 8. Bf4 {[%clk 0:02:50]}  Nge7 {[%clk 0:02:54]} 9. Bg3 {[%clk 0:02:33]}  Qb6 {[%clk 0:02:52]} 10. exf6 {[%clk 0:02:14]}  gxf6 {[%clk 0:02:51]} 11. Na3 {[%clk 0:02:08]}  Nf5 {[%clk 0:02:43]} 12. dxc5 {[%clk 0:01:53]}  Bxc5 {[%clk 0:02:41]} 13. Nd4 {[%clk 0:01:47]}  Bxd4 {[%clk 0:02:38]} 14. Bh5+ {[%clk 0:01:47]}  Ke7 {[%clk 0:02:36]} 15. cxd4 {[%clk 0:01:45]}  Qxd4 {[%clk 0:02:32]} 16. Qb3 {[%clk 0:01:34]}  Qb4 {[%clk 0:02:14]} 17. Qd3 {[%clk 0:01:31]}  Ne5 {[%clk 0:02:11]} 18. Bxe5 {[%clk 0:01:23]}  fxe5 {[%clk 0:02:11]} 19. Rac1 {[%clk 0:01:07]}  Bc6 {[%clk 0:02:04]} 20. Rfe1 {[%clk 0:00:59]}  Qxb2 {[%clk 0:02:04]} 21. Bg4 {[%clk 0:00:51]}  Raf8 {[%clk 0:01:59]} 22. Rb1 {[%clk 0:00:44]}  Qd4 {[%clk 0:01:58]} 23. Qh3 {[%clk 0:00:31]}  h5 {[%clk 0:01:53]} 24. Bxf5 {[%clk 0:00:15]}  Rxf5 {[%clk 0:01:53]} 25. Qg3 {[%clk 0:00:15]}  Qg4 {[%clk 0:01:46]} 26. Qe3 {[%clk 0:00:13]}  d4 {[%clk 0:01:45]} 27. Qg3 {[%clk 0:00:08]}  Rg8 {[%clk 0:01:44]} 28. Qxg4 {[%clk 0:00:06]}  Rxg4 {[%clk 0:01:43]} 29. g3 {[%clk 0:00:07]}  d3 {[%clk 0:01:40]} 30. Rbd1 {[%clk 0:00:05]}  Rd4 {[%clk 0:01:40]} 31. Rd2 {[%clk 0:00:05]}  Bf3 {[%clk 0:01:36]} 32. Re3 {[%clk 0:00:00]}  e4 {[%clk 0:01:36]} 0-1


[Site "https://www.chess.com"]

[Event "Titled Tuesday Blitz November 07 Late 2023"]
[White "WindWhistler11"]
[Black "Ghasi, Ameet K"]
[BlackFideId "409200"]
[WhiteElo "2432"]
[BlackElo "2802"]
[Result "0-1"]
[Round "1"]
[TimeControl "180+1"]
[Date "2023.11.07"]
[WhiteClock "0:00:03"]
[BlackClock "0:01:25"]
[Board "54"]

1. Nf3 {[%clk 0:02:57]}  g6 {[%clk 0:03:00]} 2. g3 {[%clk 0:02:57]}  Bg7 {[%clk 0:03:01]} 3. Bg2 {[%clk 0:02:58]}  Nf6 {[%clk 0:03:02]} 4. d3 {[%clk 0:02:58]}  O-O {[%clk 0:03:03]} 5. O-O {[%clk 0:02:59]}  d6 {[%clk 0:03:04]} 6. Nbd2 {[%clk 0:02:59]}  c6 {[%clk 0:03:05]} 7. e4 {[%clk 0:03:00]}  Qa5 {[%clk 0:03:05]} 8. Nd4 {[%clk 0:02:57]}  c5 {[%clk 0:03:02]} 9. N4b3 {[%clk 0:02:56]}  Qc7 {[%clk 0:03:03]} 10. c3 {[%clk 0:02:53]}  Nc6 {[%clk 0:03:04]} 11. Qe2 {[%clk 0:02:52]}  b5 {[%clk 0:03:03]} 12. a4 {[%clk 0:02:49]}  b4 {[%clk 0:03:03]} 13. d4 {[%clk 0:02:46]}  bxc3 {[%clk 0:02:57]} 14. bxc3 {[%clk 0:02:45]}  a5 {[%clk 0:02:53]} 15. Rd1 {[%clk 0:02:22]}  Ba6 {[%clk 0:02:19]} 16. c4 {[%clk 0:01:53]}  cxd4 {[%clk 0:02:20]} 17. Bb2 {[%clk 0:01:52]}  e5 {[%clk 0:02:20]} 18. Ba3 {[%clk 0:01:42]}  Rfb8 {[%clk 0:02:16]} 19. Rdc1 {[%clk 0:01:39]}  Nd7 {[%clk 0:02:15]} 20. Qe1 {[%clk 0:01:35]}  Nb4 {[%clk 0:02:16]} 21. Bxb4 {[%clk 0:01:27]}  Rxb4 {[%clk 0:02:17]} 22. Ra3 {[%clk 0:01:17]}  Nc5 {[%clk 0:02:17]} 23. Nxc5 {[%clk 0:01:16]}  dxc5 {[%clk 0:02:18]} 24. Bf1 {[%clk 0:01:16]}  Rab8 {[%clk 0:02:19]} 25. Qd1 {[%clk 0:01:11]}  Bc8 {[%clk 0:02:20]} 26. Nf3 {[%clk 0:01:10]}  Be6 {[%clk 0:02:21]} 27. Ne1 {[%clk 0:01:10]}  Qc6 {[%clk 0:02:19]} 28. Bd3 {[%clk 0:01:08]}  f5 {[%clk 0:02:18]} 29. Qe2 {[%clk 0:01:07]}  Rxa4 {[%clk 0:02:16]} 30. Rxa4 {[%clk 0:01:06]}  Qxa4 {[%clk 0:02:17]} 31. exf5 {[%clk 0:01:05]}  gxf5 {[%clk 0:02:18]} 32. Nf3 {[%clk 0:01:02]}  e4 {[%clk 0:02:07]} 33. Ng5 {[%clk 0:01:03]}  Qd7 {[%clk 0:02:04]} 34. Qh5 {[%clk 0:00:43]}  exd3 {[%clk 0:01:48]} 35. Qxh7+ {[%clk 0:00:41]}  Kf8 {[%clk 0:01:48]} 36. Qg6 {[%clk 0:00:29]}  Bg8 {[%clk 0:01:46]} 37. h4 {[%clk 0:00:21]}  Rc8 {[%clk 0:01:33]} 38. Rb1 {[%clk 0:00:12]}  d2 {[%clk 0:01:32]} 39. h5 {[%clk 0:00:10]}  d1=Q+ {[%clk 0:01:24]} 40. Rxd1 {[%clk 0:00:10]}  Rc6 {[%clk 0:01:25]} 41. Nh7+ {[%clk 0:00:05]}  Bxh7 {[%clk 0:01:25]} 42. Qxh7 {[%clk 0:00:03]}  Rh6 {[%clk 0:01:25]} 0-1


[Site "https://www.chess.com"]

[Event "Titled Tuesday Blitz November 07 Late 2023"]
[White "SereneSalmon"]
[Black "Bordi, Kevin"]
[BlackFideId "621862"]
[WhiteElo "2429"]
[BlackElo "2788"]
[Result "0-1"]
[Round "1"]
[TimeControl "180+1"]
[Date "2023.11.07"]
[WhiteClock "0:01:03"]
[BlackClock "0:01:11"]
[Board "56"]

1. d4 {[%clk 0:03:00]}  d5 {[%clk 0:03:00]} 2. c4 {[%clk 0:03:01]}  c6 {[%clk 0:03:01]} 3. Nf3 {[%clk 0:03:01]}  Nf6 {[%clk 0:03:01]} 4. Nc3 {[%clk 0:03:01]}  Bf5 {[%clk 0:03:02]} 5. cxd5 {[%clk 0:03:00]}  Nxd5 {[%clk 0:03:03]} 6. Qb3 {[%clk 0:02:58]}  Qb6 {[%clk 0:03:03]} 7. Nxd5 {[%clk 0:02:56]}  Qxb3 {[%clk 0:03:03]} 8. Nc7+ {[%clk 0:02:55]}  Kd8 {[%clk 0:03:03]} 9. axb3 {[%clk 0:02:55]}  Kxc7 {[%clk 0:03:04]} 10. Bf4+ {[%clk 0:02:55]}  Kc8 {[%clk 0:03:04]} 11. e3 {[%clk 0:02:54]}  e6 {[%clk 0:03:05]} 12. Rc1 {[%clk 0:02:50]}  Bb4+ {[%clk 0:03:02]} 13. Nd2 {[%clk 0:02:45]}  Nd7 {[%clk 0:03:02]} 14. f3 {[%clk 0:02:41]}  Re8 {[%clk 0:03:01]} 15. e4 {[%clk 0:02:41]}  e5 {[%clk 0:02:51]} 16. dxe5 {[%clk 0:02:37]}  Nxe5 {[%clk 0:02:50]} 17. Be2 {[%clk 0:02:32]}  Ng6 {[%clk 0:02:37]} 18. Be3 {[%clk 0:02:24]}  Be6 {[%clk 0:02:36]} 19. Bc4 {[%clk 0:02:19]}  Ne5 {[%clk 0:02:34]} 20. Bxe6+ {[%clk 0:02:09]}  Rxe6 {[%clk 0:02:35]} 21. O-O {[%clk 0:02:08]}  Kc7 {[%clk 0:02:19]} 22. Rfd1 {[%clk 0:02:01]}  Rd8 {[%clk 0:02:17]} 23. Nc4 {[%clk 0:01:57]}  Nxc4 {[%clk 0:01:51]} 24. bxc4 {[%clk 0:01:58]}  Rxd1+ {[%clk 0:01:49]} 25. Rxd1 {[%clk 0:01:59]}  a5 {[%clk 0:01:49]} 26. Bf4+ {[%clk 0:01:52]}  Kc8 {[%clk 0:01:36]} 27. g4 {[%clk 0:01:45]}  Re7 {[%clk 0:01:31]} 28. Be3 {[%clk 0:01:41]}  Rd7 {[%clk 0:01:30]} 29. Rxd7 {[%clk 0:01:36]}  Kxd7 {[%clk 0:01:30]} 30. Kf2 {[%clk 0:01:36]}  b5 {[%clk 0:01:30]} 31. cxb5 {[%clk 0:01:36]}  cxb5 {[%clk 0:01:31]} 32. Bd4 {[%clk 0:01:34]}  g6 {[%clk 0:01:30]} 33. f4 {[%clk 0:01:33]}  Kc6 {[%clk 0:01:30]} 34. Ke3 {[%clk 0:01:33]}  a4 {[%clk 0:01:30]} 35. Kd3 {[%clk 0:01:33]}  Bc5 {[%clk 0:01:28]} 36. Bf6 {[%clk 0:01:25]}  Bd6 {[%clk 0:01:27]} 37. e5 {[%clk 0:01:24]}  Bc5 {[%clk 0:01:18]} 38. Ke4 {[%clk 0:01:21]}  b4 {[%clk 0:01:18]} 39. f5 {[%clk 0:01:21]}  a3 {[%clk 0:01:15]} 40. bxa3 {[%clk 0:01:21]}  bxa3 {[%clk 0:01:15]} 41. e6 {[%clk 0:01:13]}  fxe6 {[%clk 0:01:14]} 42. fxe6 {[%clk 0:01:13]}  Kd6 {[%clk 0:01:14]} 43. e7 {[%clk 0:01:13]}  Kd7 {[%clk 0:01:13]} 44. Kd3 {[%clk 0:01:11]}  Bxe7 {[%clk 0:01:11]} 45. Bd4 {[%clk 0:01:08]}  Ke6 {[%clk 0:01:11]} 46. Ke4 {[%clk 0:01:03]}  Bf6 {[%clk 0:01:11]} 0-1


[Site "https://www.chess.com"]

[Event "Titled Tuesday Blitz November 07 Late 2023"]
[White "Troff, Kayden"]
[Black "ATM622"]
[WhiteFideId "2047896"]
[WhiteElo "2784"]
[BlackElo "2428"]
[Result "1-0"]
[Round "1"]
[TimeControl "180+1"]
[Date "2023.11.07"]
[WhiteClock "0:00:17"]
[BlackClock "0:00:00"]
[Board "57"]

1. d4 {[%clk 0:02:59]}  Nf6 {[%clk 0:02:58]} 2. c4 {[%clk 0:02:59]}  e6 {[%clk 0:02:58]} 3. Nf3 {[%clk 0:02:57]}  d5 {[%clk 0:02:57]} 4. g3 {[%clk 0:02:58]}  dxc4 {[%clk 0:02:56]} 5. Bg2 {[%clk 0:02:57]}  Bd7 {[%clk 0:02:57]} 6. Ne5 {[%clk 0:02:50]}  Bc6 {[%clk 0:02:57]} 7. Nxc6 {[%clk 0:02:49]}  Nxc6 {[%clk 0:02:58]} 8. O-O {[%clk 0:02:38]}  Qd7 {[%clk 0:02:54]} 9. Qa4 {[%clk 0:02:27]}  Nxd4 {[%clk 0:02:24]} 10. Qxc4 {[%clk 0:02:25]}  c5 {[%clk 0:02:17]} 11. Nc3 {[%clk 0:02:11]}  Be7 {[%clk 0:01:47]} 12. Bg5 {[%clk 0:01:42]}  O-O {[%clk 0:01:38]} 13. e3 {[%clk 0:01:41]}  Nc6 {[%clk 0:01:34]} 14. Rfd1 {[%clk 0:01:38]}  Qc8 {[%clk 0:01:30]} 15. Bxf6 {[%clk 0:01:31]}  Bxf6 {[%clk 0:01:30]} 16. Qxc5 {[%clk 0:01:31]}  Ne5 {[%clk 0:01:04]} 17. Qxc8 {[%clk 0:01:18]}  Raxc8 {[%clk 0:01:02]} 18. Ne4 {[%clk 0:01:14]}  Be7 {[%clk 0:01:01]} 19. f4 {[%clk 0:00:54]}  Nc4 {[%clk 0:00:59]} 20. Rd7 {[%clk 0:00:54]}  Bc5 {[%clk 0:00:29]} 21. Nxc5 {[%clk 0:00:48]}  Rxc5 {[%clk 0:00:30]} 22. Rc1 {[%clk 0:00:48]}  Nb6 {[%clk 0:00:15]} 23. Rxc5 {[%clk 0:00:45]}  Nxd7 {[%clk 0:00:15]} 24. Rc7 {[%clk 0:00:46]}  Nb6 {[%clk 0:00:15]} 25. Rxb7 {[%clk 0:00:46]}  Nc4 {[%clk 0:00:15]} 26. Kf2 {[%clk 0:00:42]}  a5 {[%clk 0:00:14]} 27. b3 {[%clk 0:00:40]}  Nb2 {[%clk 0:00:13]} 28. Ke2 {[%clk 0:00:37]}  Rc8 {[%clk 0:00:13]} 29. Be4 {[%clk 0:00:20]}  g6 {[%clk 0:00:13]} 30. Kd2 {[%clk 0:00:19]}  a4 {[%clk 0:00:12]} 31. Bc2 {[%clk 0:00:18]}  axb3 {[%clk 0:00:08]} 32. axb3 {[%clk 0:00:17]}  Kg7 {[%clk 0:00:08]} 33. Rd7 {[%clk 0:00:16]}  h5 {[%clk 0:00:06]} 34. Kc1 {[%clk 0:00:17]}  Rc3 {[%clk 0:00:03]} 35. Kxb2 {[%clk 0:00:16]}  Rxe3 {[%clk 0:00:04]} 36. Rd2 {[%clk 0:00:16]}  Kf6 {[%clk 0:00:02]} 37. b4 {[%clk 0:00:17]}  Rf3 {[%clk 0:00:02]} 38. b5 {[%clk 0:00:17]}  Ke7 {[%clk 0:00:00]} 39. b6 {[%clk 0:00:17]} 1-0


[Site "https://www.chess.com"]

[Event "Titled Tuesday Blitz November 07 Late 2023"]
[White "Yeritsyan, Hayk"]
[Black "Sokolovsky, Yahli"]
[WhiteFideId "13307320"]
[BlackFideId "2820242"]
[WhiteElo "2426"]
[BlackElo "2784"]
[Result "0-1"]
[Round "1"]
[TimeControl "180+1"]
[Date "2023.11.07"]
[WhiteClock "0:00:06"]
[BlackClock "0:00:12"]
[Board "58"]

1. d4 {[%clk 0:03:00]}  d6 {[%clk 0:03:00]} 2. Nf3 {[%clk 0:02:59]}  g6 {[%clk 0:03:00]} 3. Bf4 {[%clk 0:03:00]}  Bg7 {[%clk 0:03:00]} 4. h3 {[%clk 0:03:00]}  a6 {[%clk 0:02:58]} 5. e3 {[%clk 0:03:01]}  Nf6 {[%clk 0:02:57]} 6. c3 {[%clk 0:03:01]}  O-O {[%clk 0:02:57]} 7. Be2 {[%clk 0:03:02]}  b6 {[%clk 0:02:56]} 8. O-O {[%clk 0:03:02]}  Bb7 {[%clk 0:02:57]} 9. Bh2 {[%clk 0:03:03]}  Nbd7 {[%clk 0:02:57]} 10. Nbd2 {[%clk 0:03:03]}  Re8 {[%clk 0:02:56]} 11. Rc1 {[%clk 0:03:03]}  Ra7 {[%clk 0:02:56]} 12. b4 {[%clk 0:03:02]}  Qa8 {[%clk 0:02:56]} 13. c4 {[%clk 0:02:58]}  e6 {[%clk 0:02:51]} 14. c5 {[%clk 0:02:51]}  bxc5 {[%clk 0:02:35]} 15. bxc5 {[%clk 0:02:51]}  dxc5 {[%clk 0:02:25]} 16. dxc5 {[%clk 0:02:46]}  Bd5 {[%clk 0:02:11]} 17. Qa4 {[%clk 0:02:43]}  Rb8 {[%clk 0:01:58]} 18. Nb3 {[%clk 0:02:22]}  a5 {[%clk 0:01:38]} 19. Nbd4 {[%clk 0:02:18]}  Rb2 {[%clk 0:01:32]} 20. a3 {[%clk 0:01:45]}  c6 {[%clk 0:00:49]} 21. Rc2 {[%clk 0:01:17]}  Rab7 {[%clk 0:00:49]} 22. Bd3 {[%clk 0:01:00]}  Ne4 {[%clk 0:00:30]} 23. Rfc1 {[%clk 0:00:26]}  Rxc2 {[%clk 0:00:24]} 24. Qxc2 {[%clk 0:00:18]}  Ndxc5 {[%clk 0:00:16]} 25. Bf1 {[%clk 0:00:18]}  Qa7 {[%clk 0:00:10]} 26. Ne5 {[%clk 0:00:17]}  Bxe5 {[%clk 0:00:04]} 27. Bxe5 {[%clk 0:00:18]}  Nd7 {[%clk 0:00:03]} 28. Nxc6 {[%clk 0:00:15]}  Bxc6 {[%clk 0:00:02]} 29. Qxc6 {[%clk 0:00:15]}  Nxe5 {[%clk 0:00:02]} 30. Qxe4 {[%clk 0:00:16]}  Nd7 {[%clk 0:00:01]} 31. Rc8+ {[%clk 0:00:14]}  Kg7 {[%clk 0:00:02]} 32. Qd3 {[%clk 0:00:13]}  Rc7 {[%clk 0:00:02]} 33. Rd8 {[%clk 0:00:11]}  Nf6 {[%clk 0:00:02]} 34. Qd4 {[%clk 0:00:08]}  Qxd4 {[%clk 0:00:01]} 35. Rxd4 {[%clk 0:00:09]}  Rc3 {[%clk 0:00:02]} 36. Ra4 {[%clk 0:00:10]}  Rc5 {[%clk 0:00:03]} 37. f3 {[%clk 0:00:09]}  Nd5 {[%clk 0:00:03]} 38. Kf2 {[%clk 0:00:09]}  Nb6 {[%clk 0:00:03]} 39. Rd4 {[%clk 0:00:08]}  Rc3 {[%clk 0:00:04]} 40. a4 {[%clk 0:00:08]}  Ra3 {[%clk 0:00:04]} 41. Bb5 {[%clk 0:00:09]}  Ra2+ {[%clk 0:00:04]} 42. Kg3 {[%clk 0:00:09]}  Nd5 {[%clk 0:00:03]} 43. e4 {[%clk 0:00:09]}  Nc3 {[%clk 0:00:03]} 44. Rd3 {[%clk 0:00:08]}  Nxb5 {[%clk 0:00:02]} 45. axb5 {[%clk 0:00:08]}  Rb2 {[%clk 0:00:03]} 46. Rd8 {[%clk 0:00:06]}  Rxb5 {[%clk 0:00:03]} 47. Ra8 {[%clk 0:00:07]}  h5 {[%clk 0:00:03]} 48. h4 {[%clk 0:00:07]}  Kf6 {[%clk 0:00:03]} 49. Kf4 {[%clk 0:00:07]}  Kg7 {[%clk 0:00:02]} 50. g3 {[%clk 0:00:07]}  Rc5 {[%clk 0:00:02]} 51. Ra7 {[%clk 0:00:06]}  Kf6 {[%clk 0:00:03]} 52. Ra6 {[%clk 0:00:05]}  Kg7 {[%clk 0:00:03]} 53. Ra7 {[%clk 0:00:05]}  Kf8 {[%clk 0:00:03]} 54. g4 {[%clk 0:00:04]}  Kg7 {[%clk 0:00:02]} 55. g5 {[%clk 0:00:03]}  Kf8 {[%clk 0:00:03]} 56. Ra6 {[%clk 0:00:03]}  Ke7 {[%clk 0:00:03]} 57. Ra7+ {[%clk 0:00:04]}  Ke8 {[%clk 0:00:04]} 58. Ra8+ {[%clk 0:00:04]}  Ke7 {[%clk 0:00:04]} 59. Ra7+ {[%clk 0:00:04]}  Kf8 {[%clk 0:00:05]} 60. Ra8+ {[%clk 0:00:05]}  Kg7 {[%clk 0:00:06]} 61. Ra7 {[%clk 0:00:05]}  Rb5 {[%clk 0:00:07]} 62. Ra6 {[%clk 0:00:05]}  e5+ {[%clk 0:00:04]} 63. Kg3 {[%clk 0:00:05]}  Rc5 {[%clk 0:00:05]} 64. Ra7 {[%clk 0:00:05]}  Kf8 {[%clk 0:00:05]} 65. Ra8+ {[%clk 0:00:05]}  Ke7 {[%clk 0:00:06]} 66. Ra7+ {[%clk 0:00:06]}  Ke6 {[%clk 0:00:06]} 67. Ra6+ {[%clk 0:00:06]}  Kd7 {[%clk 0:00:06]} 68. Ra7+ {[%clk 0:00:07]}  Ke8 {[%clk 0:00:07]} 69. Ra8+ {[%clk 0:00:07]}  Ke7 {[%clk 0:00:08]} 70. Ra7+ {[%clk 0:00:08]}  Kf8 {[%clk 0:00:09]} 71. Ra8+ {[%clk 0:00:08]}  Kg7 {[%clk 0:00:09]} 72. Ra7 {[%clk 0:00:09]}  Rb5 {[%clk 0:00:09]} 73. Ra6 {[%clk 0:00:08]}  f5 {[%clk 0:00:02]} 74. gxf6+ {[%clk 0:00:03]}  Kf7 {[%clk 0:00:02]} 75. Ra7+ {[%clk 0:00:02]}  Kxf6 {[%clk 0:00:03]} 76. Ra6+ {[%clk 0:00:03]}  Kg7 {[%clk 0:00:03]} 77. Ra7+ {[%clk 0:00:03]}  Kh6 {[%clk 0:00:04]} 78. Ra6 {[%clk 0:00:04]}  Rc5 {[%clk 0:00:05]} 79. Ra7 {[%clk 0:00:04]}  Rb5 {[%clk 0:00:04]} 80. Ra6 {[%clk 0:00:05]}  Kg7 {[%clk 0:00:03]} 81. Ra7+ {[%clk 0:00:05]}  Kf8 {[%clk 0:00:04]} 82. Ra8+ {[%clk 0:00:04]}  Ke7 {[%clk 0:00:05]} 83. Ra7+ {[%clk 0:00:05]}  Ke8 {[%clk 0:00:05]} 84. Ra6 {[%clk 0:00:06]}  Kf7 {[%clk 0:00:02]} 85. Ra7+ {[%clk 0:00:06]}  Kf8 {[%clk 0:00:03]} 86. Ra6 {[%clk 0:00:06]}  Ke7 {[%clk 0:00:02]} 87. Ra7+ {[%clk 0:00:07]}  Kd6 {[%clk 0:00:02]} 88. Ra6+ {[%clk 0:00:07]}  Kc5 {[%clk 0:00:02]} 89. Rxg6 {[%clk 0:00:07]}  a4 {[%clk 0:00:03]} 90. Ra6 {[%clk 0:00:07]}  Kb4 {[%clk 0:00:02]} 91. f4 {[%clk 0:00:07]}  exf4+ {[%clk 0:00:03]} 92. Kxf4 {[%clk 0:00:08]}  a3 {[%clk 0:00:01]} 93. Rd6 {[%clk 0:00:04]}  a2 {[%clk 0:00:01]} 94. Rd1 {[%clk 0:00:04]}  Kc3 {[%clk 0:00:02]} 95. Ra1 {[%clk 0:00:03]}  Kb2 {[%clk 0:00:02]} 96. Rxa2+ {[%clk 0:00:03]}  Kxa2 {[%clk 0:00:03]} 97. e5 {[%clk 0:00:04]}  Kb3 {[%clk 0:00:02]} 98. e6 {[%clk 0:00:03]}  Kc4 {[%clk 0:00:03]} 99. e7 {[%clk 0:00:03]}  Rb8 {[%clk 0:00:03]} 100. Kf5 {[%clk 0:00:03]}  Kd5 {[%clk 0:00:04]} 101. Kf6 {[%clk 0:00:03]}  Kd6 {[%clk 0:00:04]} 102. Kf7 {[%clk 0:00:03]}  Kd7 {[%clk 0:00:05]} 103. Kg6 {[%clk 0:00:03]}  Kxe7 {[%clk 0:00:05]} 104. Kxh5 {[%clk 0:00:04]}  Kf7 {[%clk 0:00:06]} 105. Kh6 {[%clk 0:00:04]}  Kg8 {[%clk 0:00:07]} 106. h5 {[%clk 0:00:04]}  Rb7 {[%clk 0:00:08]} 107. Kg6 {[%clk 0:00:05]}  Rh7 {[%clk 0:00:09]} 108. h6 {[%clk 0:00:06]}  Kh8 {[%clk 0:00:10]} 109. Kh5 {[%clk 0:00:06]}  Ra7 {[%clk 0:00:10]} 110. Kg6 {[%clk 0:00:07]}  Ra6+ {[%clk 0:00:11]} 111. Kg5 {[%clk 0:00:07]}  Kh7 {[%clk 0:00:12]} 112. Kh5 {[%clk 0:00:06]}  Rxh6+ {[%clk 0:00:12]} 0-1


[Site "https://www.chess.com"]

[Event "Titled Tuesday Blitz November 07 Late 2023"]
[White "Goltsev, Dmitry"]
[Black "Villarreal, Agustin"]
[WhiteFideId "24176710"]
[BlackFideId "125687"]
[WhiteElo "2754"]
[BlackElo "2423"]
[Result "1-0"]
[Round "1"]
[TimeControl "180+1"]
[Date "2023.11.07"]
[WhiteClock "0:00:03"]
[BlackClock "0:00:00"]
[Board "63"]

1. e4 {[%clk 0:02:58]}  e5 {[%clk 0:02:59]} 2. Nf3 {[%clk 0:02:58]}  Nc6 {[%clk 0:03:00]} 3. Bb5 {[%clk 0:02:58]}  a6 {[%clk 0:02:59]} 4. Ba4 {[%clk 0:02:59]}  Nf6 {[%clk 0:03:00]} 5. O-O {[%clk 0:02:58]}  Be7 {[%clk 0:02:59]} 6. Re1 {[%clk 0:02:57]}  b5 {[%clk 0:02:58]} 7. Bb3 {[%clk 0:02:58]}  O-O {[%clk 0:02:59]} 8. c3 {[%clk 0:02:58]}  d6 {[%clk 0:02:59]} 9. d4 {[%clk 0:02:58]}  Bb7 {[%clk 0:02:54]} 10. Nbd2 {[%clk 0:02:54]}  h6 {[%clk 0:02:53]} 11. Nf1 {[%clk 0:02:52]}  Re8 {[%clk 0:02:54]} 12. Ng3 {[%clk 0:02:50]}  Bf8 {[%clk 0:02:54]} 13. a4 {[%clk 0:02:11]}  Na5 {[%clk 0:02:54]} 14. Ba2 {[%clk 0:02:09]}  Qe7 {[%clk 0:02:18]} 15. Nf5 {[%clk 0:02:07]}  Qd8 {[%clk 0:02:18]} 16. dxe5 {[%clk 0:01:57]}  dxe5 {[%clk 0:02:17]} 17. Qc2 {[%clk 0:01:57]}  c5 {[%clk 0:02:05]} 18. b4 {[%clk 0:01:34]}  cxb4 {[%clk 0:02:02]} 19. cxb4 {[%clk 0:01:35]}  Nc6 {[%clk 0:02:02]} 20. Qb3 {[%clk 0:01:11]}  Qc7 {[%clk 0:01:36]} 21. Bd2 {[%clk 0:01:06]}  bxa4 {[%clk 0:01:32]} 22. Qxa4 {[%clk 0:01:06]}  Rad8 {[%clk 0:01:14]} 23. Rac1 {[%clk 0:00:53]}  Qd7 {[%clk 0:01:11]} 24. h3 {[%clk 0:00:43]}  Nd4 {[%clk 0:01:10]} 25. Qxd7 {[%clk 0:00:38]}  Nxf3+ {[%clk 0:01:11]} 26. gxf3 {[%clk 0:00:39]}  Rxd7 {[%clk 0:01:11]} 27. Bc3 {[%clk 0:00:37]}  Rd3 {[%clk 0:01:08]} 28. Re3 {[%clk 0:00:32]}  Rd7 {[%clk 0:01:04]} 29. Kh2 {[%clk 0:00:30]}  Nh5 {[%clk 0:01:03]} 30. Rg1 {[%clk 0:00:27]}  Kh7 {[%clk 0:01:03]} 31. Bb3 {[%clk 0:00:23]}  Bc6 {[%clk 0:01:03]} 32. Ra1 {[%clk 0:00:22]}  Bb5 {[%clk 0:01:02]} 33. Ba4 {[%clk 0:00:17]}  g6 {[%clk 0:01:02]} 34. Ng3 {[%clk 0:00:16]}  Nf4 {[%clk 0:01:00]} 35. Bxb5 {[%clk 0:00:17]}  axb5 {[%clk 0:01:00]} 36. Ra5 {[%clk 0:00:17]}  Rb7 {[%clk 0:00:47]} 37. Ne2 {[%clk 0:00:17]}  Ne6 {[%clk 0:00:39]} 38. Rd3 {[%clk 0:00:16]}  f6 {[%clk 0:00:38]} 39. Rd5 {[%clk 0:00:16]}  Reb8 {[%clk 0:00:34]} 40. Bd2 {[%clk 0:00:14]}  Be7 {[%clk 0:00:30]} 41. f4 {[%clk 0:00:08]}  exf4 {[%clk 0:00:20]} 42. Nxf4 {[%clk 0:00:09]}  Ng5 {[%clk 0:00:20]} 43. Kg2 {[%clk 0:00:02]}  Nxe4 {[%clk 0:00:20]} 44. Be1 {[%clk 0:00:03]}  g5 {[%clk 0:00:20]} 45. Ne6 {[%clk 0:00:03]}  Kg6 {[%clk 0:00:19]} 46. Nd4 {[%clk 0:00:04]}  Nd6 {[%clk 0:00:17]} 47. Nc6 {[%clk 0:00:03]}  Rc8 {[%clk 0:00:16]} 48. Nxe7+ {[%clk 0:00:04]}  Rxe7 {[%clk 0:00:17]} 49. Bd2 {[%clk 0:00:03]}  Nc4 {[%clk 0:00:16]} 50. Raxb5 {[%clk 0:00:03]}  Ne5 {[%clk 0:00:16]} 51. Be3 {[%clk 0:00:02]}  Re6 {[%clk 0:00:16]} 52. Rb6 {[%clk 0:00:02]}  Rxb6 {[%clk 0:00:09]} 53. Bxb6 {[%clk 0:00:03]}  Rc4 {[%clk 0:00:09]} 54. Bc5 {[%clk 0:00:03]}  Rc3 {[%clk 0:00:07]} 55. b5 {[%clk 0:00:03]}  Rb3 {[%clk 0:00:07]} 56. b6 {[%clk 0:00:04]}  Nc4 {[%clk 0:00:07]} 57. Rd7 {[%clk 0:00:02]}  Nxb6 {[%clk 0:00:07]} 58. Rb7 {[%clk 0:00:03]}  Na4 {[%clk 0:00:03]} 59. Rxb3 {[%clk 0:00:03]}  Nxc5 {[%clk 0:00:03]} 60. Ra3 {[%clk 0:00:03]}  Ne6 {[%clk 0:00:03]} 61. Ra6 {[%clk 0:00:04]}  Nf4+ {[%clk 0:00:04]} 62. Kg3 {[%clk 0:00:04]}  h5 {[%clk 0:00:04]} 63. h4 {[%clk 0:00:04]}  Ne2+ {[%clk 0:00:05]} 64. Kf3 {[%clk 0:00:04]}  Nd4+ {[%clk 0:00:05]} 65. Ke4 {[%clk 0:00:04]}  Ne2 {[%clk 0:00:03]} 66. hxg5 {[%clk 0:00:04]}  Kxg5 {[%clk 0:00:00]} 67. Ra3 {[%clk 0:00:03]} 1-0


[Site "https://www.chess.com"]